fUSD/lending_fUSD_20260529
["ID","MTS","AMOUNT","RATE_DAILY","PERIOD"]
[423275517,1780012241000,-193.0,0.00014351,2]
[423275521,1780012241000,-5000.0,0.00014351,2]
[423275532,1780012241000,-326.69715319,0.00014351,2]
[423275534,1780012241000,-600.0,0.00014351,2]
[423275537,1780012241000,-600.0,0.00014351,2]
[423275523,1780012241000,-153.01181789,0.00014351,2]
[423275530,1780012241000,-193.0,0.00014351,2]
[423275528,1780012241000,-250.0,0.00014351,2]
[423275525,1780012241000,-3860.56637,0.00014351,2]
[423275541,1780012241000,-300.0,0.00014351,2]
[423275539,1780012241000,-300.0,0.00014351,2]
[423275569,1780012241000,-2206.98663259,0.00014413,2]
[423275543,1780012241000,-300.0,0.00014351,2]
[423275550,1780012241000,-193.0,0.00014351,2]
[423275553,1780012241000,-300.0,0.00014351,2]
[423275555,1780012241000,-500.0,0.00014351,2]
[423275558,1780012241000,-258.51664629,0.00014351,2]
[423275562,1780012241000,-734.83004747,0.00014357,2]
[423275560,1780012241000,-794.55648748,0.00014352,2]
[423275564,1780012241000,-166.66,0.00014367,2]
[423275567,1780012241000,-166.66,0.00014384,2]
[423275515,1780012241000,-319.8,0.000143,2]
[423275546,1780012241000,-300.0,0.00014351,2]
[423275511,1780012241000,-2206.98663259,0.00014292,2]
[423275472,1780012241000,-102294.36988507,0.00013902,2]
[423275506,1780012241000,-33371.27095766,0.00014249,2]
[423275467,1780012241000,-1373.25000103,0.00013902,2]
[423275468,1780012241000,-1332.00926807,0.00013902,2]
[423275470,1780012241000,-948.94767356,0.00013902,2]
[423275469,1780012241000,-3431.39827791,0.00013902,2]
[423275471,1780012241000,-503.0,0.00013902,2]
[423275571,1780012241000,-3072.2841489,0.00014463,2]
[423275475,1780012241000,-2206.98663259,0.00013927,2]
[423275477,1780012241000,-1570.0,0.00013927,2]
[423275473,1780012241000,-166.66,0.00013922,2]
[423275487,1780012241000,-1577.0,0.00013982,2]
[423275483,1780012241000,-743.0,0.00013955,2]
[423275481,1780012241000,-1100.38,0.00013949,2]
[423275485,1780012241000,-166.66,0.00013973,2]
[423275479,1780012241000,-1472.0,0.00013929,2]
[423275495,1780012241000,-166.66,0.0001411,2]
[423275491,1780012241000,-2206.98663259,0.00014048,2]
[423275489,1780012241000,-500.0,0.00014002,2]
[423275493,1780012241000,-3480.03008721,0.00014103,2]
[423275500,1780012241000,-2206.98663259,0.0001417,2]
[423275502,1780012241000,-150.0,0.00014237,2]
[423275498,1780012241000,-3072.2841489,0.00014126,2]
[423275508,1780012241000,-1100.38,0.00014282,2]
[423275504,1780012241000,-166.66,0.00014247,2]
[423275513,1780012241000,-3072.2841489,0.00014294,2]
[423275573,1780012241000,-1300.0,0.000145,5]
[423275548,1780012241000,-300.0,0.00014351,2]
[423275581,1780012241000,-3072.2841489,0.00014631,2]
[423275640,1780012241000,-874.25908816,0.00014988,2]
[423275638,1780012241000,-150.0,0.00014986,2]
[423275642,1780012241000,-874.25908816,0.0001499,2]
[423275653,1780012241000,-500.0,0.00014998,2]
[423275655,1780012241000,-500.0,0.00014999,2]
[423275645,1780012241000,-874.25908816,0.0001499,2]
[423275649,1780012241000,-1379.48,0.00014998,2]
[423275647,1780012241000,-151.0,0.00014997,2]
[423275651,1780012241000,-500.0,0.00014998,2]
[423275657,1780012241000,-500.0,0.00014999,2]
[423275661,1780012241000,-500.0,0.00014999,2]
[423275663,1780012241000,-500.0,0.00014999,2]
[423275666,1780012241000,-500.0,0.00014999,2]
[423275668,1780012241000,-500.0,0.00014999,2]
[423275670,1780012241000,-500.0,0.00014999,2]
[423275675,1780012241000,-500.0,0.00014999,2]
[423275677,1780012241000,-319.09437583,0.00014999,2]
[423275680,1780012241000,-500.0,0.00014999,2]
[423275673,1780012241000,-500.0,0.00014999,2]
[423275682,1780012241000,-500.0,0.00014999,2]
[423275684,1780012241000,-500.0,0.00014999,2]
[423275686,1780012241000,-500.0,0.00014999,2]
[423275575,1780012241000,-2206.98663259,0.00014535,2]
[423275636,1780012241000,-241.71764134,0.00014986,2]
[423275634,1780012241000,-4713.1219444,0.00014983,2]
[423275659,1780012241000,-500.0,0.00014999,2]
[423275627,1780012241000,-2206.98663259,0.000149,2]
[423275579,1780012241000,-1100.38,0.00014614,2]
[423275631,1780012241000,-3072.2841489,0.00014968,2]
[423275577,1780012241000,-1700.0,0.000146,5]
[423275576,1780012241000,-255.0,0.00014569,2]
[423275584,1780012241000,-2206.98663259,0.00014657,2]
[423275586,1780012241000,-2100.0,0.000147,5]
[423275593,1780012241000,-1680.0,0.00014798,2]
[423275590,1780012241000,-2206.98663259,0.00014778,2]
[423275595,1780012241000,-3072.2841489,0.000148,2]
[423275606,1780012241000,-788.37761579,0.000149,2]
[423275608,1780012241000,-1759.21410522,0.000149,2]
[423275597,1780012241000,-400.0,0.000148,5]
[423275588,1780012241000,-420.0,0.00014747,2]
[423275600,1780012241000,-166.66,0.00014812,2]
[423275629,1780012241000,-2672.92891039,0.000149,2]
[423275619,1780012241000,-178.75644312,0.000149,2]
[423275621,1780012241000,-3300.0518,0.000149,2]
[423275617,1780012241000,-2069.23124374,0.000149,2]
[423275615,1780012241000,-1964.19668317,0.000149,2]
[423275624,1780012241000,-400.0,0.000149,5]
[423275610,1780012241000,-1759.21410522,0.000149,2]
[423275604,1780012241000,-788.37761579,0.000149,2]
[423275602,1780012241000,-794.55648748,0.00014899,2]
[423275613,1780012241000,-1964.19668317,0.000149,2]
[423275753,1780012242000,-500.0,0.00014999,2]
[423275769,1780012242000,-500.0,0.00014999,2]
[423275744,1780012242000,-500.0,0.00014999,2]
[423275758,1780012242000,-500.0,0.00014999,2]
[423275760,1780012242000,-560.40129446,0.00014999,2]
[423275756,1780012242000,-500.0,0.00014999,2]
[423275765,1780012242000,-500.0,0.00014999,2]
[423275767,1780012242000,-500.0,0.00014999,2]
[423275762,1780012242000,-500.0,0.00014999,2]
[423275773,1780012242000,-500.0,0.00014999,2]
[423275776,1780012242000,-500.0,0.00014999,2]
[423275771,1780012242000,-500.0,0.00014999,2]
[423275805,1780012242000,-500.0,0.00014999,2]
[423275783,1780012242000,-500.0,0.00014999,2]
[423275781,1780012242000,-500.0,0.00014999,2]
[423275784,1780012242000,-500.0,0.00014999,2]
[423275787,1780012242000,-500.0,0.00014999,2]
[423275798,1780012242000,-500.0,0.00014999,2]
[423275800,1780012242000,-500.0,0.00014999,2]
[423275791,1780012242000,-199.56,0.00014999,2]
[423275789,1780012242000,-500.0,0.00014999,2]
[423275794,1780012242000,-500.0,0.00014999,2]
[423275803,1780012242000,-500.0,0.00014999,2]
[423275807,1780012242000,-500.0,0.00014999,2]
[423275742,1780012242000,-500.0,0.00014999,2]
[423275779,1780012242000,-500.0,0.00014999,2]
[423275751,1780012242000,-500.0,0.00014999,2]
[423275691,1780012242000,-500.0,0.00014999,2]
[423275749,1780012242000,-500.0,0.00014999,2]
[423275809,1780012242000,-500.0,0.00014999,2]
[423275688,1780012242000,-500.0,0.00014999,2]
[423275697,1780012242000,-500.0,0.00014999,2]
[423275692,1780012242000,-500.0,0.00014999,2]
[423275695,1780012242000,-500.0,0.00014999,2]
[423275699,1780012242000,-500.0,0.00014999,2]
[423275703,1780012242000,-500.0,0.00014999,2]
[423275701,1780012242000,-500.0,0.00014999,2]
[423275705,1780012242000,-500.0,0.00014999,2]
[423275707,1780012242000,-500.0,0.00014999,2]
[423275712,1780012242000,-500.0,0.00014999,2]
[423275710,1780012242000,-500.0,0.00014999,2]
[423275714,1780012242000,-500.0,0.00014999,2]
[423275716,1780012242000,-500.0,0.00014999,2]
[423275718,1780012242000,-500.0,0.00014999,2]
[423275720,1780012242000,-500.0,0.00014999,2]
[423275729,1780012242000,-500.0,0.00014999,2]
[423275727,1780012242000,-324.06170433,0.00014999,2]
[423275725,1780012242000,-500.0,0.00014999,2]
[423275722,1780012242000,-500.0,0.00014999,2]
[423275732,1780012242000,-500.0,0.00014999,2]
[423275736,1780012242000,-500.0,0.00014999,2]
[423275734,1780012242000,-500.0,0.00014999,2]
[423275738,1780012242000,-500.0,0.00014999,2]
[423275747,1780012242000,-500.0,0.00014999,2]
[423275740,1780012242000,-192.07480164,0.00014999,2]
[423275812,1780012242000,-500.0,0.00014999,2]
[423275796,1780012242000,-500.0,0.00014999,2]
[423275822,1780012242000,-639.18,0.00014999,2]
[423275884,1780012242000,-500.0,0.00014999,2]
[423275882,1780012242000,-500.0,0.00014999,2]
[423275891,1780012242000,-500.0,0.00014999,2]
[423275888,1780012242000,-500.0,0.00014999,2]
[423275893,1780012242000,-500.0,0.00014999,2]
[423275895,1780012242000,-500.0,0.00014999,2]
[423275905,1780012242000,-500.0,0.00014999,2]
[423275900,1780012242000,-500.0,0.00014999,2]
[423275906,1780012242000,-500.0,0.00014999,2]
[423275908,1780012242000,-500.0,0.00014999,2]
[423275898,1780012242000,-500.0,0.00014999,2]
[423275904,1780012242000,-500.0,0.00014999,2]
[423275874,1780012242000,-639.34,0.00014999,2]
[423275910,1780012242000,-500.0,0.00014999,2]
[423275916,1780012242000,-500.0,0.00014999,2]
[423275914,1780012242000,-500.0,0.00014999,2]
[423275920,1780012242000,-500.0,0.00014999,2]
[423275922,1780012242000,-500.0,0.00014999,2]
[423275928,1780012242000,-500.0,0.00014999,3]
[423275930,1780012242000,-500.0,0.00014999,4]
[423275925,1780012242000,-439.72223808,0.00014999,2]
[423275918,1780012242000,-500.0,0.00014999,2]
[423275932,1780012242000,-500.0,0.00014999,5]
[423275927,1780012242000,-500.0,0.00014999,2]
[423275934,1780012242000,-500.0,0.00014999,6]
[423275814,1780012242000,-500.0,0.00014999,2]
[423275912,1780012242000,-500.0,0.00014999,2]
[423275886,1780012242000,-500.0,0.00014999,2]
[423275902,1780012242000,-500.0,0.00014999,2]
[423275880,1780012242000,-500.0,0.00014999,2]
[423275820,1780012242000,-214.81732421,0.00014999,2]
[423275870,1780012242000,-639.18,0.00014999,2]
[423275825,1780012242000,-639.18,0.00014999,2]
[423275818,1780012242000,-500.0,0.00014999,2]
[423275816,1780012242000,-500.0,0.00014999,2]
[423275827,1780012242000,-639.18,0.00014999,2]
[423275829,1780012242000,-639.18,0.00014999,2]
[423275831,1780012242000,-639.18,0.00014999,2]
[423275833,1780012242000,-639.18,0.00014999,2]
[423275837,1780012242000,-639.18,0.00014999,2]
[423275835,1780012242000,-639.18,0.00014999,2]
[423275841,1780012242000,-639.18,0.00014999,2]
[423275850,1780012242000,-639.18,0.00014999,2]
[423275936,1780012242000,-500.0,0.00014999,7]
[423275858,1780012242000,-639.18,0.00014999,2]
[423275844,1780012242000,-639.18,0.00014999,2]
[423275852,1780012242000,-639.18,0.00014999,2]
[423275846,1780012242000,-639.18,0.00014999,2]
[423275854,1780012242000,-639.18,0.00014999,2]
[423275848,1780012242000,-639.18,0.00014999,2]
[423275856,1780012242000,-639.18,0.00014999,2]
[423275877,1780012242000,-500.0,0.00014999,2]
[423275863,1780012242000,-639.18,0.00014999,2]
[423275861,1780012242000,-639.18,0.00014999,2]
[423275867,1780012242000,-639.18,0.00014999,2]
[423275839,1780012242000,-639.18,0.00014999,2]
[423275865,1780012242000,-639.18,0.00014999,2]
[423276029,1780012243000,-1213.75,0.00014999,2]
[423276006,1780012243000,-1213.75,0.00014999,2]
[423276032,1780012243000,-1213.75444399,0.00014999,2]
[423276031,1780012243000,-1213.75,0.00014999,2]
[423276035,1780012243000,-500.0,0.00014999,2]
[423276008,1780012243000,-1213.75,0.00014999,2]
[423276016,1780012243000,-1213.75,0.00014999,2]
[423276012,1780012243000,-1213.75,0.00014999,2]
[423276010,1780012243000,-1213.75,0.00014999,2]
[423276014,1780012243000,-1213.75,0.00014999,2]
[423276021,1780012243000,-1213.75,0.00014999,2]
[423276019,1780012243000,-1213.75,0.00014999,2]
[423276027,1780012243000,-1213.75,0.00014999,2]
[423276054,1780012243000,-500.0,0.00014999,2]
[423276025,1780012243000,-1213.75,0.00014999,2]
[423276037,1780012243000,-500.0,0.00014999,2]
[423276039,1780012243000,-500.0,0.00014999,2]
[423276040,1780012243000,-500.0,0.00014999,2]
[423276042,1780012243000,-500.0,0.00014999,2]
[423276056,1780012243000,-332.0,0.00014999,2]
[423276058,1780012243000,-500.0,0.00014999,2]
[423276044,1780012243000,-500.0,0.00014999,2]
[423276046,1780012243000,-500.0,0.00014999,2]
[423276048,1780012243000,-500.0,0.00014999,2]
[423276050,1780012243000,-500.0,0.00014999,2]
[423276052,1780012243000,-500.0,0.00014999,2]
[423276000,1780012243000,-1213.75,0.00014999,2]
[423276023,1780012243000,-1213.75,0.00014999,2]
[423276002,1780012243000,-1213.75,0.00014999,2]
[423275940,1780012243000,-500.0,0.00014999,9]
[423275998,1780012243000,-1213.75,0.00014999,2]
[423275938,1780012243000,-500.0,0.00014999,8]
[423275942,1780012243000,-500.0,0.00014999,10]
[423276063,1780012243000,-500.0,0.00014999,2]
[423275944,1780012243000,-500.0,0.00014999,11]
[423275946,1780012243000,-500.0,0.00014999,12]
[423275955,1780012243000,-500.0,0.00014999,16]
[423275957,1780012243000,-500.0,0.00014999,17]
[423275951,1780012243000,-500.0,0.00014999,14]
[423275953,1780012243000,-500.0,0.00014999,15]
[423275948,1780012243000,-500.0,0.00014999,13]
[423275959,1780012243000,-500.0,0.00014999,18]
[423275962,1780012243000,-500.0,0.00014999,19]
[423275964,1780012243000,-500.0,0.00014999,20]
[423276004,1780012243000,-1213.75,0.00014999,2]
[423275966,1780012243000,-500.0,0.00014999,21]
[423275981,1780012243000,-500.0,0.00014999,2]
[423275979,1780012243000,-340.62007261,0.00014999,21]
[423275983,1780012243000,-295.39381884,0.00014999,2]
[423275970,1780012243000,-500.0,0.00014999,21]
[423275977,1780012243000,-500.0,0.00014999,21]
[423275974,1780012243000,-500.0,0.00014999,21]
[423275972,1780012243000,-500.0,0.00014999,21]
[423275985,1780012243000,-1213.75,0.00014999,2]
[423275987,1780012243000,-1213.75,0.00014999,2]
[423275989,1780012243000,-1213.75,0.00014999,2]
[423275993,1780012243000,-1213.75,0.00014999,2]
[423275991,1780012243000,-1213.75,0.00014999,2]
[423275996,1780012243000,-1213.75,0.00014999,2]
[423275968,1780012243000,-500.0,0.00014999,21]
[423276061,1780012243000,-267.58062943,0.00014999,2]
[423276088,1780012243000,-500.0,0.00014999,2]
[423276067,1780012243000,-151.0,0.00014999,2]
[423276137,1780012243000,-151.0,0.00014999,2]
[423276139,1780012243000,-151.0,0.00014999,2]
[423276143,1780012243000,-151.0,0.00014999,2]
[423276145,1780012243000,-151.0,0.00014999,2]
[423276141,1780012243000,-151.0,0.00014999,2]
[423276160,1780012243000,-151.0,0.00014999,2]
[423276162,1780012243000,-151.0,0.00014999,2]
[423276165,1780012243000,-1658.95,0.00014999,2]
[423276164,1780012243000,-246.483793,0.00014999,2]
[423276149,1780012243000,-151.0,0.00014999,2]
[423276147,1780012243000,-151.0,0.00014999,2]
[423276155,1780012243000,-151.0,0.00014999,2]
[423276154,1780012243000,-151.0,0.00014999,2]
[423276135,1780012243000,-151.0,0.00014999,2]
[423276157,1780012243000,-151.0,0.00014999,2]
[423276065,1780012243000,-502.02558638,0.00014999,2]
[423276170,1780012243000,-1658.95,0.00014999,2]
[423276172,1780012243000,-1658.95,0.00014999,2]
[423276184,1780012243000,-1658.95,0.00014999,2]
[423276186,1780012243000,-1658.95,0.00014999,2]
[423276178,1780012243000,-1658.95,0.00014999,2]
[423276190,1780012243000,-1658.95,0.00014999,2]
[423276174,1780012243000,-1658.95,0.00014999,2]
[423276175,1780012243000,-1658.95,0.00014999,2]
[423276179,1780012243000,-1658.95,0.00014999,2]
[423276188,1780012243000,-1658.95,0.00014999,2]
[423276181,1780012243000,-1658.95,0.00014999,2]
[423276192,1780012243000,-1658.95,0.00014999,2]
[423276151,1780012243000,-151.0,0.00014999,2]
[423276131,1780012243000,-151.0,0.00014999,2]
[423276167,1780012243000,-1658.95,0.00014999,2]
[423276133,1780012243000,-151.0,0.00014999,2]
[423276129,1780012243000,-151.0,0.00014999,2]
[423276071,1780012243000,-151.0,0.00014999,2]
[423276082,1780012243000,-151.0,0.00014999,2]
[423276084,1780012243000,-151.0,0.00014999,2]
[423276078,1780012243000,-151.0,0.00014999,2]
[423276069,1780012243000,-151.0,0.00014999,2]
[423276080,1780012243000,-151.0,0.00014999,2]
[423276076,1780012243000,-151.0,0.00014999,2]
[423276086,1780012243000,-500.0,0.00014999,2]
[423276090,1780012243000,-151.0,0.00014999,2]
[423276092,1780012243000,-500.0,0.00014999,2]
[423276095,1780012243000,-151.0,0.00014999,2]
[423276108,1780012243000,-151.0,0.00014999,2]
[423276106,1780012243000,-151.0,0.00014999,2]
[423276073,1780012243000,-151.0,0.00014999,2]
[423276097,1780012243000,-520.80002273,0.00014999,2]
[423276127,1780012243000,-151.0,0.00014999,2]
[423276110,1780012243000,-151.0,0.00014999,2]
[423276125,1780012243000,-151.0,0.00014999,2]
[423276121,1780012243000,-151.0,0.00014999,2]
[423276119,1780012243000,-151.0,0.00014999,2]
[423276117,1780012243000,-151.0,0.00014999,2]
[423276123,1780012243000,-151.0,0.00014999,2]
[423276114,1780012243000,-151.0,0.00014999,2]
[423276112,1780012243000,-151.0,0.00014999,2]
[423276104,1780012243000,-151.0,0.00014999,2]
[423276099,1780012243000,-151.0,0.00014999,2]
[423276103,1780012243000,-151.0,0.00014999,2]
[423276101,1780012243000,-151.0,0.00014999,2]
[423276243,1780012244000,-1302.17,0.00014999,2]
[423276230,1780012244000,-1302.17,0.00014999,2]
[423276224,1780012244000,-1302.17,0.00014999,2]
[423276238,1780012244000,-1302.17,0.00014999,2]
[423276240,1780012244000,-1302.17,0.00014999,2]
[423276228,1780012244000,-1302.17,0.00014999,2]
[423276245,1780012244000,-1302.17,0.00014999,2]
[423276249,1780012244000,-1302.17,0.00014999,2]
[423276262,1780012244000,-1379.48,0.00014999,2]
[423276260,1780012244000,-1302.23309549,0.00014999,2]
[423276257,1780012244000,-1302.17,0.00014999,2]
[423276265,1780012244000,-1379.48,0.00014999,2]
[423276255,1780012244000,-1302.17,0.00014999,2]
[423276251,1780012244000,-1302.17,0.00014999,2]
[423276253,1780012244000,-1302.17,0.00014999,2]
[423276247,1780012244000,-1302.17,0.00014999,2]
[423276234,1780012244000,-1302.17,0.00014999,2]
[423276200,1780012244000,-1658.95,0.00014999,2]
[423276232,1780012244000,-1302.17,0.00014999,2]
[423276194,1780012244000,-1658.95,0.00014999,2]
[423276196,1780012244000,-1658.95,0.00014999,2]
[423276198,1780012244000,-1658.95,0.00014999,2]
[423276202,1780012244000,-1658.95,0.00014999,2]
[423276204,1780012244000,-1658.95,0.00014999,2]
[423276208,1780012244000,-1658.95,0.00014999,2]
[423276210,1780012244000,-1658.95,0.00014999,2]
[423276206,1780012244000,-1658.95,0.00014999,2]
[423276212,1780012244000,-1658.9581078,0.00014999,2]
[423276214,1780012244000,-1302.17,0.00014999,2]
[423276216,1780012244000,-1302.17,0.00014999,2]
[423276218,1780012244000,-1302.17,0.00014999,2]
[423276217,1780012244000,-1302.17,0.00014999,2]
[423276220,1780012244000,-1302.17,0.00014999,2]
[423276222,1780012244000,-1302.17,0.00014999,2]
[423276236,1780012244000,-1302.17,0.00014999,2]
[423276267,1780012244000,-1379.48,0.00014999,2]
[423276226,1780012244000,-1302.17,0.00014999,2]
[423276272,1780012244000,-1379.48,0.00014999,2]
[423276310,1780012244000,-500.0,0.00014999,2]
[423276314,1780012244000,-500.0,0.00014999,2]
[423276316,1780012244000,-500.0,0.00014999,2]
[423276320,1780012244000,-500.0,0.00014999,2]
[423276318,1780012244000,-500.0,0.00014999,2]
[423276336,1780012244000,-500.0,0.00014999,10]
[423276334,1780012244000,-500.0,0.00014999,2]
[423276322,1780012244000,-500.0,0.00014999,2]
[423276338,1780012244000,-500.0,0.00014999,10]
[423276328,1780012244000,-500.0,0.00014999,2]
[423276340,1780012244000,-8004.95805736,0.00015,2]
[423276324,1780012244000,-500.0,0.00014999,2]
[423276326,1780012244000,-500.0,0.00014999,2]
[423276332,1780012244000,-504.10462625,0.00014999,2]
[423276330,1780012244000,-199.87120086,0.00014999,2]
[423276307,1780012244000,-289.62764343,0.00014999,2]
[423276309,1780012244000,-500.0,0.00014999,2]
[423276269,1780012244000,-1379.48,0.00014999,2]
[423276305,1780012244000,-500.0,0.00014999,2]
[423276274,1780012244000,-1379.48,0.00014999,2]
[423276276,1780012244000,-1379.48,0.00014999,2]
[423276278,1780012244000,-1379.48,0.00014999,2]
[423276288,1780012244000,-1379.48,0.00014999,2]
[423276284,1780012244000,-1379.48,0.00014999,2]
[423276280,1780012244000,-1379.48,0.00014999,2]
[423276286,1780012244000,-1379.48,0.00014999,2]
[423276312,1780012244000,-500.0,0.00014999,2]
[423276282,1780012244000,-1379.48,0.00014999,2]
[423276290,1780012244000,-1379.48,0.00014999,2]
[423276294,1780012244000,-1379.48,0.00014999,2]
[423276297,1780012244000,-1379.48,0.00014999,2]
[423276299,1780012244000,-1379.68852869,0.00014999,2]
[423276295,1780012244000,-1379.48,0.00014999,2]
[423276301,1780012244000,-500.0,0.00014999,2]
[423276303,1780012244000,-500.0,0.00014999,2]
[423276292,1780012244000,-1379.48,0.00014999,2]
[423276607,1780012246000,-799559.51001673,0.00015,2]
[423276609,1780012247000,-152.0,0.00012148,2]
[423276611,1780012247000,-4908.73427602,0.00015,2]
[423276608,1780012247000,152.0,0.00027122,120]
[423276610,1780012247000,-28884.46749771,0.00015,2]
[423276612,1780012265000,152.0,0.00027122,120]
[423276613,1780012310000,160.0,0.00028,120]
[423276615,1780012311000,160.0,0.00028,120]
[423276614,1780012311000,160.0,0.00028,120]
[423276616,1780012315000,160.0,0.00028,120]
[423276617,1780012316000,160.0,0.00028,120]
[423276618,1780012329000,152.0,0.0002712,120]
[423276619,1780012331000,160.0,0.00028,120]
[423276621,1780012423000,971.9019976,0.00028082,120]
[423276623,1780012545000,153.495,0.00028082,120]
[423276624,1780012578000,165.0,0.00028,120]
[423276626,1780012581000,165.0,0.00028,120]
[423276625,1780012581000,992.26,0.00025535,120]
[423276627,1780012702000,2000.0,0.00027626,120]
[423276628,1780012808000,431.37,0.00010973,30]
[423276629,1780012812000,446.0,0.00027814,120]
[423276630,1780012829000,551.9875093,0.00028082,120]
[423276634,1780012935000,150.0,0.00012945,120]
[423276635,1780013082000,2401.67,0.00027945,120]
[423276636,1780013088000,2401.67,0.00027945,120]
[423276640,1780013148000,-426.532527,0.0001183,2]
[423276639,1780013148000,-250.0,0.0001183,2]
[423276638,1780013148000,-500.0,0.0001183,2]
[423276637,1780013148000,-289.56,0.00011667,2]
[423276642,1780013163000,800.0,0.00026986,120]
[423276643,1780013193000,389.621,0.00028032,120]
[423276644,1780013253000,-167.00610094,0.0001183,2]
[423276645,1780013253000,-193.0,0.0001183,2]
[423276647,1780013253000,-500.0,0.0001219,2]
[423276648,1780013253000,-250.0,0.0001219,2]
[423276646,1780013253000,-162.44917431,0.0001209,2]
[423276651,1780013254000,-40.27946734,0.0001219,2]
[423276649,1780013254000,-193.0,0.0001219,2]
[423276650,1780013254000,-193.0,0.0001219,2]
[423276652,1780013341000,1000.0,0.00028081,120]
[423276654,1780013347000,-193.39547901,0.0001183,2]
[423276653,1780013347000,-500.0,0.0001183,2]
[423276657,1780013372000,-500.0,0.0001183,2]
[423276656,1780013372000,-56.60452099,0.0001183,2]
[423276661,1780013406000,49.2836349,0.0001183,2]
[423276660,1780013406000,254.16376414,0.0001183,2]
[423276662,1780013421000,152.0,0.00027951,120]
[423276667,1780013431000,-450.7163651,0.0001183,2]
[423276669,1780013431000,-500.0,0.00012574,2]
[423276668,1780013431000,-215.50460005,0.00012311,2]
[423276671,1780013431000,-160.83062347,0.00012574,2]
[423276674,1780013431000,-119.30359252,0.00012574,2]
[423276670,1780013431000,-89.16937653,0.00012574,2]
[423276672,1780013431000,-500.0,0.00012574,2]
[423276676,1780013431000,-193.0,0.00012574,2]
[423276675,1780013431000,-380.69640748,0.00012574,2]
[423276677,1780013431000,-119.99965596,0.00012574,2]
[423276673,1780013431000,-250.0,0.00012574,2]
[423276678,1780013431000,-380.00034404,0.00012574,2]
[423276719,1780013432000,-500.0,0.00013689,2]
[423276720,1780013432000,-286.92451178,0.00013689,2]
[423276718,1780013432000,-500.0,0.00013689,2]
[423276714,1780013432000,-150.0,0.00013664,2]
[423276715,1780013432000,-150.0,0.00013689,2]
[423276713,1780013432000,-316.915,0.00013634,2]
[423276712,1780013432000,-5513.237,0.00013634,2]
[423276709,1780013432000,-171.0,0.00013573,2]
[423276710,1780013432000,-150.0,0.00013576,2]
[423276717,1780013432000,-220.97394282,0.00013689,2]
[423276711,1780013432000,-1926.0,0.000136,2]
[423276716,1780013432000,-500.0,0.00013689,2]
[423276731,1780013432000,-500.0,0.00013699,2]
[423276722,1780013432000,-500.0,0.00013689,2]
[423276723,1780013432000,-328.89031897,0.00013689,2]
[423276727,1780013432000,-500.0,0.00013699,2]
[423276725,1780013432000,-1000.0,0.00013698,2]
[423276729,1780013432000,-500.0,0.00013699,2]
[423276728,1780013432000,-500.0,0.00013699,2]
[423276705,1780013432000,-859.0,0.00013519,2]
[423276732,1780013432000,-500.0,0.00013699,2]
[423276724,1780013432000,-478.6568838,0.00013689,2]
[423276730,1780013432000,-500.0,0.00013699,2]
[423276726,1780013432000,-2500.0,0.00013699,2]